Workbook

Sheet Vos comptes
A1: Votre situation financière au 14/11/2016 | B1: Votre situation financière au 14/11/2016 | C1: Votre situation financière au 14/11/2016 | D1: Votre situation financière au 14/11/2016
A3: Compte | B3: R.I.B. | C3: Solde | D3: Dev
A4: COMPTE COURANT ENTREPRISE EUR AUDITECH INNOVATIONS | B4: 30027 16062 00020115101 | C4: 670371.79 | D4: EUR
A5: Total des dépenses cartes prélevées fin novembre 2016 | B5: 30027 16062 00020115101 | C5: -1562.8 | D5: EUR
A6: Total des dépenses cartes prélevées fin octobre 2016 | B6: 30027 16062 00020115101 | C6: -2100.79 | D6: EUR
A7: COMPTE COURANT ENTREPRISE EUR AUDITECH INNOVATIONS | B7: 30027 16062 00020115102 | C7: 60.81 | D7: EUR | E7: compte de réception des virements clients.
A8: COMPTE COURANT ENTREPRISE EUR HELIOS DEVELOPPEMENT | B8: 30027 16062 00020115901 | C8: 139423.97 | D8: EUR
A9: PRET PROFESSIONNEL | B9: 30027 16062 00020115106 | C9: -23958.43 | D9: EUR
A10: PRET B.E.I. | B10: 30027 16062 00020115108 | C10: -113039.73 | D10: EUR
A11: COMPTE COURANT ENTREPRISE EUR ZETA | B11: 30027 16062 00020154402 | C11: 1000 | D11: EUR

Sheet Cpt 16062 00020154402
A1: Situation de votre compte COMPTE COURANT ENTREPRISE EUR ZETA (EUR) au 14/11/2016 | B1: Situation de votre compte COMPTE COURANT ENTREPRISE EUR ZETA (EUR) au 14/11/2016 | C1: Situation de votre compte COMPTE COURANT ENTREPRISE EUR ZETA (EUR) au 14/11/2016 | D1: Situation de votre compte COMPTE COURANT ENTREPRISE EUR ZETA (EUR) au 14/11/2016 | E1: Situation de votre compte COMPTE COURANT ENTREPRISE EUR ZETA (EUR) au 14/11/2016 | F1: Situation de votre compte COMPTE COURANT ENTREPRISE EUR ZETA (EUR) au 14/11/2016
A2: R.I.B. : 30027 16062 00020154402 | B2: R.I.B. : 30027 16062 00020154402 | C2: R.I.B. : 30027 16062 00020154402 | D2: R.I.B. : 30027 16062 00020154402 | E2: R.I.B. : 30027 16062 00020154402 | F2: R.I.B. : 30027 16062 00020154402
D3: Solde initial : | E3: Solde initial : | F3: =F8-SUM(D6:D6)-SUM(E6:E6) -> 0
D4: Liste de vos comptes | E4: Liste de vos comptes | F4: Liste de vos comptes
A5: Opération | B5: Valeur | C5: Libellé | D5: Débit | E5: Crédit | F5: Solde
A6: 2016-11-03 | B6: 2016-11-03 | C6: DEPOT DE CAPITAL C18D16308N00981 | E6: 1000 | F6: =F3+D6+E6 -> 1000
D8: Solde au 14/11/2016 : | E8: Solde au 14/11/2016 : | F8: 1000
A9: Liste de vos comptes | B9: Liste de vos comptes | C9: Liste de vos comptes | D9: Liste de vos comptes | E9: Liste de vos comptes | F9: Liste de vos comptes

Sheet Cpt 16062 00020115901
A1: Situation de votre compte COMPTE COURANT ENTREPRISE EUR HELIOS DEVELOPPEMENT (EUR) au 14/11/2016 | B1: Situation de votre compte COMPTE COURANT ENTREPRISE EUR HELIOS DEVELOPPEMENT (EUR) au 14/11/2016 | C1: Situation de votre compte COMPTE COURANT ENTREPRISE EUR HELIOS DEVELOPPEMENT (EUR) au 14/11/2016 | D1: Situation de votre compte COMPTE COURANT ENTREPRISE EUR HELIOS DEVELOPPEMENT (EUR) au 14/11/2016 | E1: Situation de votre compte COMPTE COURANT ENTREPRISE EUR HELIOS DEVELOPPEMENT (EUR) au 14/11/2016 | F1: Situation de votre compte COMPTE COURANT ENTREPRISE EUR HELIOS DEVELOPPEMENT (EUR) au 14/11/2016
A2: R.I.B. : 30027 16062 00020115901 | B2: R.I.B. : 30027 16062 00020115901 | C2: R.I.B. : 30027 16062 00020115901 | D2: R.I.B. : 30027 16062 00020115901 | E2: R.I.B. : 30027 16062 00020115901 | F2: R.I.B. : 30027 16062 00020115901
D3: Solde initial : | E3: Solde initial : | F3: =F14-SUM(D6:D12)-SUM(E6:E12) -> 389223.97
D4: Liste de vos comptes | E4: Liste de vos comptes | F4: Liste de vos comptes
A5: Opération | B5: Valeur | C5: Libellé | D5: Débit | E5: Crédit | F5: Solde
A6: 2016-09-21 | B6: 2016-09-21 | C6: VIR COMPTE COURANT PRIVE EUR | D6: -50000 | F6: =F3+D6+E6 -> 339223.97
A7: 2016-09-30 | B7: 2016-09-30 | C7: VIR SOLDE VENTE PARTS SOCIALES | D7: -199295 | F7: =IF(F6<>"NA",F6+D7+E7,"NA") -> 139928.97
A8: 2016-10-02 | B8: 2016-10-01 | C8: INTERETS/FRAIS | D8: -15 | F8: 139913.97
A9: 2016-10-10 | B9: 2016-10-10 | C9: VIR SEPA ZETA C18D16284N00163 | D9: -500 | F9: 139413.97
A10: 2016-10-25 | B10: 2016-10-25 | C10: DIVIDENDES 2015 D AUDITECH | E10: 288522 | F10: 427935.97 | G10: mouvement de régul, virement fait deux fois. (un en Juillet 2016, et un en octobre 16)
A11: 2016-10-27 | B11: 2016-10-16 | C11: VIR DE MME VERONIQUE ROUSSEL VK63011QVB6RH001 | E11: 10 | F11: 427945.97
A12: 2016-10-27 | B12: 2016-10-27 | C12: VIR ERREUR DE VIREMENT | D12: -288522 | F12: 139423.97 | G12: mouvement de régul, virement fait deux fois. (un en Juillet 2016, et un en octobre 16)
D14: Solde au 14/11/2016 : | E14: Solde au 14/11/2016 : | F14: 139423.97
A15: Liste de vos comptes | B15: Liste de vos comptes | C15: Liste de vos comptes | D15: Liste de vos comptes | E15: Liste de vos comptes | F15: Liste de vos comptes

Sheet Cpt 16062 00020115102
A1: Situation de votre compte COMPTE COURANT ENTREPRISE EUR AUDITECH INNOVATIONS (EUR) au 14/11/2016 | B1: Situation de votre compte COMPTE COURANT ENTREPRISE EUR AUDITECH INNOVATIONS (EUR) au 14/11/2016 | C1: Situation de votre compte COMPTE COURANT ENTREPRISE EUR AUDITECH INNOVATIONS (EUR) au 14/11/2016 | D1: Situation de votre compte COMPTE COURANT ENTREPRISE EUR AUDITECH INNOVATIONS (EUR) au 14/11/2016 | E1: Situation de votre compte COMPTE COURANT ENTREPRISE EUR AUDITECH INNOVATIONS (EUR) au 14/11/2016 | F1: Situation de votre compte COMPTE COURANT ENTREPRISE EUR AUDITECH INNOVATIONS (EUR) au 14/11/2016
A2: R.I.B. : 30027 16062 00020115102 | B2: R.I.B. : 30027 16062 00020115102 | C2: R.I.B. : 30027 16062 00020115102 | D2: R.I.B. : 30027 16062 00020115102 | E2: R.I.B. : 30027 16062 00020115102 | F2: R.I.B. : 30027 16062 00020115102
D3: Solde initial : | E3: Solde initial : | F3: =F260-SUM(D6:D258)-SUM(E6:E258) -> 6255.56
D4: Liste de vos comptes | E4: Liste de vos comptes | F4: Liste de vos comptes
A5: Opération | B5: Valeur | C5: Libellé | D5: Débit | E5: Crédit | F5: Solde
A6: 2016-09-14 | B6: 2016-09-14 | C6: VIR TRESORERIE DU HAVRE MUNI 160762130021002016-09-1230186 F FA44963 DU 04-08-16VILLE DU HAVRE / BP | E6: 777.6 | F6: =F3+D6+E6 -> 7033.16
A7: 2016-09-14 | B7: 2016-09-14 | C7: VIR FRANCE VET 10010459 13092016-093840 000003 FACT44574-44575-44576 | E7: 822.77 | F7: =IF(F6<>"NA",F6+D7+E7,"NA") -> 7855.93
A8: 2016-09-14 | B8: 2016-09-14 | C8: VIR VAUDAUX JEAN SAS AUDITECH | E8: 80.98 | F8: 7936.91
A9: 2016-09-14 | B9: 2016-09-14 | C9: VIR VAUDAUX JEAN SAS AUDITECH | E9: 122.64 | F9: 8059.55
A10: 2016-09-14 | B10: 2016-09-14 | C10: VIR VAUDAUX JEAN SAS AUDITECH | E10: 80.98 | F10: 8140.53
A11: 2016-09-14 | B11: 2016-09-14 | C11: VIR VAUDAUX JEAN SAS AUDITECH | E11: 80.98 | F11: 8221.51
A12: 2016-09-14 | B12: 2016-09-14 | C12: VIR DESCOURS ET CABAUD IDF DF/B04/427/15747 FACTURE FA44125 DU 08/07/16. | E12: 261.36 | F12: 8482.87
A13: 2016-09-14 | B13: 2016-09-14 | C13: VIR CEVENOLE DE PROTECTION 0012216009 VIREMENT | E13: 1186.58 | F13: 9669.45
A14: 2016-09-15 | B14: 2016-09-15 | C14: VIR NOYER SAFIA 10/503/272/18562 FACTURES FA43796 FA44179 FA44180 FA44391 FA44392 FA44393 FA44613 FA446 | E14: 4210.2 | F14: 13879.65
A15: 2016-09-15 | B15: 2016-09-15 | C15: VIR MARINGUE SAGETAT SAS MS/02/195/10909 FACTURES FA44383 FA44382 FA44880. | E15: 928.66 | F15: 14808.31
A16: 2016-09-15 | B16: 2016-09-15 | C16: REGT FACT VBL VBL | E16: 90.58 | F16: 14898.89
A17: 2016-09-15 | B17: 2016-09-15 | C17: VIR TECHNIDIS - DOCKS MARITI VIR. TECHNIDIS - DOCKS MARITIME | E17: 1675.11 | F17: 16574
A18: 2016-09-15 | B18: 2016-09-15 | C18: VIR ETS DESCOURS ET CABAUD DN/B08/213/9563 FACTURE FA44124 DU 08/07/16. | E18: 593.69 | F18: 17167.69
A19: 2016-09-15 | B19: 2016-09-15 | C19: VIR C.M.B. CB/BPO/319/24433 FACTURES FA44084 FA44085 FA44087 FA44086 FA44325 FA44324 FA44323 BL757 | E19: 9453.37 | F19: 26621.06
A20: 2016-09-15 | B20: 2016-09-15 | C20: VIR DESCOURS ET CABAUD RHONE DR/B12/11160/372882 FACTURES FA43553 FA44122 FA44121 FA44120 FA44119 FA44118 FA44117 FA441 | E20: 16333.48 | F20: 42954.54
A21: 2016-09-15 | B21: 2016-09-15 | C21: VIR BEAUPLET PROLIANS BE/06/841/58903 FACTURES FA43004 FA44055 FA44054 FA44053 FA44052 FA44051 FA44050 FA440 | E21: 15020.48 | F21: 57975.02
A22: 2016-09-15 | B22: 2016-09-15 | C22: VIR GUILMAN 75/501/464/11326 FACTURES FA44151 FA44150 FA44149 FA44148 FA44147 FA44146 FA44145 FA441 | E22: 10240.04 | F22: 68215.06
A23: 2016-09-15 | B23: 2016-09-15 | C23: VIR COFAQ 00006- VIREMENT RELEVE FOURNISSEUR | E23: 1013.93 | F23: 69228.99
A24: 2016-09-15 | B24: 2016-09-15 | C24: VIR HEULIN-ROUSSEAU RO/CIO/216/8613 FACTURES FA44161 FA44160 FA44162 FA44163 FA44591 FA44592. | E24: 3184.27 | F24: 72413.26
A25: 2016-09-15 | B25: 2016-09-15 | C25: VIR VPSL 30027-12-16259615024188 FA44684-44904 VPSL | E25: 412.9 | F25: 72826.16
A26: 2016-09-15 | B26: 2016-09-15 | C26: VIR BURDIN BOSSERT BB/BCA/724/12118 FACTURES 44136 44582 44581 44580. | E26: 2268.3 | F26: 75094.46
A27: 2016-09-15 | B27: 2016-09-15 | C27: VIR MABEO INDUSTRIES 015SCVF007038 FACTURES | E27: 30034.98 | F27: 105129.44
A28: 2016-09-15 | B28: 2016-09-15 | C28: VIR SCHMERBER SA SC/BPH/338/13752 FACTURES FA44410 FA44409. | E28: 573.48 | F28: 105702.92
A29: 2016-09-15 | B29: 2016-09-15 | C29: VIR ETABLISSEMENTS BAURES BA/13/677/27237 FACTURES 44290 44288 44289 44468 44469 44470. | E29: 2556.37 | F29: 108259.29
A30: 2016-09-15 | B30: 2016-09-15 | C30: VIR COMPTE COURANT ENTREPRISE E | D30: -108000 | F30: 259.29
A31: 2016-09-15 | B31: 2016-09-15 | C31: VIR BFL 01/503/709/66397 FACTURES FA44058 FA44297 FA44298 FA44488 FA44832. | E31: 2425.41 | F31: 2684.7
A32: 2016-09-16 | B32: 2016-09-16 | C32: VIR CODIMA 39/501/221/7779 FACTURES FA44522 FA44725 FA44726 FA44727 FA44728 FA44729. | E32: 6123.46 | F32: 8808.16
A33: 2016-09-16 | B33: 2016-09-16 | C33: VIR TAMPLEU SPRIET 71/503/3880/262461 FACTURES 44224 44226 44227 44228 44229 44230 44231 44232 442333 44234 | E33: 9911.37 | F33: 18719.53
A34: 2016-09-16 | B34: 2016-09-16 | C34: VIR BEAUPLET - LANGUILLE BE/01/846/59573 FACTURES FA43007 FA43001. | E34: 237.91 | F34: 18957.44
A35: 2016-09-16 | B35: 2016-09-16 | C35: VIR C.A.C.C. CA/01/679/24134 FACTURES 44082 44081 44080 44079 44078 44077 44076 44075 44074 44317 4 | E35: 8496.22 | F35: 27453.66
A36: 2016-09-16 | B36: 2016-09-16 | C36: VIR ETS GUERMONT-WEBER GW/B59/454/15247 FACTURES FA44370 FA44371 FA44586 FA44873 FA44872. | E36: 1157.23 | F36: 28610.89
A37: 2016-09-16 | B37: 2016-09-16 | C37: VIR BOSSU-CUVELIER BC/06/327/21501 FACTURES FA44063 FA44062 FA44299 FA44300 FA44301 FA44489 FA44490 FA444 | E37: 16437.63 | F37: 45048.52
A38: 2016-09-16 | B38: 2016-09-16 | C38: VIR SAS FTI 73/506/297/4176 FACTURES 44137 44138 44365 44366 44367 44583. | E38: 2528.06 | F38: 47576.58
A39: 2016-09-16 | B39: 2016-09-16 | C39: VIR VAMA-DOCKS DG/SG/522/26900 FACTURES FA44254 FA44253 FA44252 FA44255 FA44265 FA44267 FA44266 FA442 | E39: 14613.74 | F39: 62190.32
A40: 2016-09-16 | B40: 2016-09-16 | C40: VIR RENE LEDOUX LE/BC/2542/44676 FACTURE FA44171 DU 08/07/16. | E40: 483.44 | F40: 62673.76
A41: 2016-09-16 | B41: 2016-09-16 | C41: VIR ETABLISSEMENTS BOSSU CUV BC/01/327/21500 FACTURES FA43008 FA43009 FA43010 FA43011. | E41: 1560.86 | F41: 64234.62
A42: 2016-09-16 | B42: 2016-09-16 | C42: VIR SAS DISTRILAB INDUSTRIE 21/501/261/37163 FACTURES FA44126 FA44127 FA44128 FA44358 FA44357 FA44356 FA44355 FA445 | E42: 8405.82 | F42: 72640.44
A43: 2016-09-16 | B43: 2016-09-16 | C43: VIR BERNARD PAGES SAS PA/BC/2534/44300 FACTURES FA44296 FA44485 FA44486 FA44693 FA44830 FA44831 FA44828 FA448 | E43: 2646.95 | F43: 75287.39
A44: 2016-09-16 | B44: 2016-09-16 | C44: VIR SAFIM 68/504/270/11223 FACTURES 44199 44200 44201 44202 44203 44407 44648 44647 44797 44796 4 | E44: 5801.81 | F44: 81089.2
A45: 2016-09-16 | B45: 2016-09-16 | C45: VIR COFAQ 00002- VIREMENT RELEVE FOURNISSEUR | E45: 20183.4 | F45: 101272.6
A46: 2016-09-16 | B46: 2016-09-16 | C46: VIR PREVOT SMETA SAS PS/04/504/9464 FACTURES FA44629 FA44628. | E46: 384.86 | F46: 101657.46
A47: 2016-09-16 | B47: 2016-09-16 | C47: VIR SERVET DUCHEMIN SD/15/693/18100 FACTURES 44205 44414 44415 44686 44650 44651 44652. | E47: 2301.37 | F47: 103958.83
A48: 2016-09-16 | B48: 2016-09-16 | C48: VIR SA MARTIN RONDEAU MR/CL/462/20285 FACTURES FA44173 FA44174 FA44175 FA44176 FA44385 FA44386 FA44384 FA446 | E48: 18498.22 | F48: 122457.05
A49: 2016-09-16 | B49: 2016-09-16 | C49: VIR SOCIETE METALLURGIQUE DE SG/02/289/13390 FACTURES FA44123 44213 44212 4421144209 44208 44207 44206 44210 44416 | E49: 3156.93 | F49: 125613.98
A50: 2016-09-16 | B50: 2016-09-16 | C50: VIR TUBE ET RACCORD DU CENTR VIR. T.R.C. | E50: 492.86 | F50: 126106.84
A51: 2016-09-16 | B51: 2016-09-16 | C51: VIR ETS BAUDOUX SA BX/BRE/217/8514 FACTURE FA44825 DU 29/07/16. | E51: 588.48 | F51: 126695.32
A52: 2016-09-16 | B52: 2016-09-16 | C52: VIR DEMAY LESIEUR 05/503/180/7218 FACTURES FA44545 FA44906 FA44744 FA44743 FA44742. | E52: 1676.76 | F52: 128372.08
A53: 2016-09-16 | B53: 2016-09-16 | C53: VIR LECOUFLE SAS LC/07/375/12787 FACTURES FA44170 FA44380 FA44602 FA44601 FA44775. | E53: 928.9 | F53: 129300.98
A54: 2016-09-16 | B54: 2016-09-16 | C54: VIR COMPTE COURANT ENTREPRISE E | D54: -126000 | F54: 3300.98
A55: 2016-09-16 | B55: 2016-09-16 | C55: FACT FA44463 VU62601T1NB85601 | E55: 164.16 | F55: 3465.14
A56: 2016-09-19 | B56: 2016-09-19 | C56: VIR BELMET BORDEREAU 0000039526 V/FACT BORDEREAU 0000039526 | E56: 1876.85 | F56: 5341.99
A57: 2016-09-19 | B57: 2016-09-19 | C57: VIR ANDRETY BORDEREAU 0000004687 V/FACT BORDEREAU 0000004687 | E57: 90.58 | F57: 5432.57
A58: 2016-09-19 | B58: 2016-09-19 | C58: FA44579 FA44578 FA44577 FA4413 FRANCE PROTECT | E58: 703.99 | F58: 6136.56
A59: 2016-09-19 | B59: 2016-09-19 | C59: FACTURE AUDITECH N FA43158 ENTE I26D16261N00682 FACTURE AUDITECH N FA43158 ENTENDREPOITIERS | E59: 85.92 | F59: 6222.48
A60: 2016-09-19 | B60: 2016-09-19 | C60: VIR DISPELOR BY SECURIVAL FF1615 | E60: 86.88 | F60: 6309.36
A61: 2016-09-19 | B61: 2016-09-19 | C61: VIR HUDRY 46/504/576/6653 FACTURES FA42918 FA42920 FA43995 FA43994 FA43993 FA43992 FA43990 FA441 | E61: 6699.1 | F61: 13008.46
A62: 2016-09-19 | B62: 2016-09-19 | C62: VIR DESCOURS ET CABAUD PACA DP/B08/180/23442 FACTURES FA42818 44108 44109 FA44344 FA44546 44487 44865 44864 44863 4 | E62: 7959.48 | F62: 20967.94
A63: 2016-09-19 | B63: 2016-09-19 | C63: VIR COMPTE COURANT ENTREPRISE E | D63: -20000 | F63: 967.94
A64: 2016-09-20 | B64: 2016-09-20 | C64: VIR MARTIN RONDEAU MR/BNP/466/20582 FACTURES 43053 FA43047 FA43048 FA43052 FA43051. | E64: 1900.42 | F64: 2868.36
A65: 2016-09-20 | B65: 2016-09-20 | C65: VIR AUDITIO 30027-12-16264035012720 CLIENT41AUDIT60200 FA45231 | E65: 91.3 | F65: 2959.66
A66: 2016-09-20 | B66: 2016-09-20 | C66: VIR BOUTILLON 31/506/659/18854 FACTURES FA44066 FA44065 FA44064 FA44069 FA44068 FA44067 FA44073 FA440 | E66: 12813.42 | F66: 15773.08
A67: 2016-09-20 | B67: 2016-09-20 | C67: VIR COMPTE COURANT ENTREPRISE E | D67: -15000 | F67: 773.08
A68: 2016-09-20 | B68: 2016-09-21 | C68: REM CHQ REF16062R08 | E68: 2522.68 | F68: 3295.76
A69: 2016-09-20 | B69: 2016-09-20 | C69: VIR COMPTE COURANT ENTREPRISE E | D69: -3000 | F69: 295.76
A70: 2016-09-21 | B70: 2016-09-21 | C70: VIR ETABLISSEMENTS DESCOURS DR/B01/11175/373594 FACTURE FA44750 DU 29/07/16. | E70: 84.79 | F70: 380.55
A71: 2016-09-21 | B71: 2016-09-21 | C71: VIR GERIN 0012427369 AVIS DE 20.09.16 A | E71: 1920.71 | F71: =IF(F70<>"NA",F70+D71+E71,"NA") -> 2301.26
A72: 2016-09-21 | B72: 2016-09-21 | C72: VIR VAMA DOCKS DG/PAL/531/27448 FACTURE FA43659 DU 17/06/16. | E72: 1371.71 | F72: 3672.97
A73: 2016-09-21 | B73: 2016-09-21 | C73: VIR COMPTE COURANT ENTREPRISE E | D73: -3500 | F73: 172.97
A74: 2016-09-22 | B74: 2016-09-22 | C74: VIR VELTIS 0749 FACTURE 43908 DU 24/06/2016 | E74: 333.5 | F74: 506.47
A75: 2016-09-22 | B75: 2016-09-22 | C75: VIR SERVET DUCHEMIN SD/15/699/18634 FACTURE 42580 DU 13/05/16. | E75: 153.12 | F75: 659.59
A76: 2016-09-22 | B76: 2016-09-22 | C76: VIR CEVENOLE DE PROTECTION 0012216319 VIREMENT | E76: 239.62 | F76: 899.21
A77: 2016-09-22 | B77: 2016-09-22 | C77: VIR COMPTE COURANT ENTREPRISE E | D77: -2400 | F77: -1500.79
A78: 2016-09-22 | B78: 2016-09-22 | C78: VIR ECH 20/09/2016 SPBI BJT 0000025990 SELON AVIS SEPARE DU 22/09/2016 | E78: 496.8 | F78: -1003.99
A79: 2016-09-22 | B79: 2016-09-22 | C79: REMISE LCR 1609151 2091372 | E79: 1546.51 | F79: 542.52
A80: 2016-09-26 | B80: 2016-09-26 | C80: VIR HM PROTEC FA42916/90010543/26-05-2016 | E80: 5644.92 | F80: 6187.44
A81: 2016-09-26 | B81: 2016-09-26 | C81: VIR C.A.C.C. CA/01/691/24896 FACTURE 44717 DU 29/07/16. | E81: 2726.88 | F81: 8914.32
A82: 2016-09-27 | B82: 2016-09-27 | C82: VIR TAMPLEU SPRIET 71/507/3884/263146 FACTURE 43078 DU 30/05/16. | E82: 465.55 | F82: 9379.87
A83: 2016-09-27 | B83: 2016-09-28 | C83: REM CHQ REF16062R08 | E83: 155.14 | F83: 9535.01
A84: 2016-09-27 | B84: 2016-09-27 | C84: VIR COMPTE COURANT ENTREPRISE E | D84: -9500 | F84: 35.01
A85: 2016-09-28 | B85: 2016-09-28 | C85: VIR MARTIN RONDEAU MR/BNP/473/20688 FACTURES FAA43050 FA43049. | E85: 2406.14 | F85: 2441.15
A86: 2016-09-28 | B86: 2016-09-28 | C86: VIR SARL BIGORRE ASSISTANCE BIGORRE ASSISTANCE COMMERCE F 44059/44060/44061 | E86: 252.54 | F86: 2693.69
A87: 2016-09-28 | B87: 2016-09-28 | C87: VIR LIGNE T SA FF603354 FACTURE AUDITECH INNOVATIONS SAS F4 | E87: 415.54 | F87: 3109.23
A88: 2016-09-28 | B88: 2016-09-28 | C88: VIR COMPTE COURANT ENTREPRISE E | D88: -3000 | F88: 109.23
A89: 2016-09-28 | B89: 2016-09-28 | C89: VIR PROTECT HOMS COTENTIN 30027-12-16272625003947 PROTECTHOMS COTENTIN/FA44402FA44789 | E89: 1446.83 | F89: 1556.06
A90: 2016-09-28 | B90: 2016-09-28 | C90: VIR BOUTILLON 31/506/673/19131 FACTURES FA43272 FA43273 FA43274. | E90: 1236.38 | F90: 2792.44
A91: 2016-09-30 | B91: 2016-09-30 | C91: PROTECTHOMS 39 PRATZ VG627332225TTB01 | E91: 1087.92 | F91: 3880.36
A92: 2016-09-30 | B92: 2016-09-30 | C92: VIR ECH 30/09/2016 SPBI BJT 0000025991 SELON AVIS SEPARE DU 29/09/2016 | E92: 298.08 | F92: 4178.44
A93: 2016-09-30 | B93: 2016-09-30 | C93: VIR AUDILAB FA45000 AUDITECH | E93: 253.25 | F93: 4431.69
A94: 2016-09-30 | B94: 2016-09-30 | C94: VIR SMG-DC SAVOIE SG/04/302/13648 FACTURES 43069 43070 43071 43072. | E94: 1288.18 | F94: 5719.87
A95: 2016-09-30 | B95: 2016-09-30 | C95: VIR RS SOUDAGE BEFI VIREMENT RS SOUDAGE BEFI FA44893 | E95: 175.2 | F95: 5895.07
A96: 2016-09-30 | B96: 2016-09-30 | C96: VIR MIG12 AUDITECH FA44387 | E96: 80.98 | F96: 5976.05
A97: 2016-09-30 | B97: 2016-09-30 | C97: VIR MIG12 AUDITECH FA44390 | E97: 58.74 | F97: 6034.79
A98: 2016-09-30 | B98: 2016-09-30 | C98: VIR MIG12 AUDITECH FA44389 | E98: 161.95 | F98: 6196.74
A99: 2016-09-30 | B99: 2016-09-30 | C99: VIR MIG12 AUDITECH FA44612 | E99: 27.79 | F99: 6224.53
A100: 2016-09-30 | B100: 2016-09-30 | C100: VIR MIG12 AUDITECH FA44388 | E100: 80.98 | F100: 6305.51
A101: 2016-09-30 | B101: 2016-09-30 | C101: VIR PREVOT SMETA PS/05/516/9759 FACTURE FA43057 DU 30/05/16. | E101: 957.95 | F101: 7263.46
A102: 2016-09-30 | B102: 2016-09-30 | C102: VIR WERO GMBH & CO.KG 30027-12-16274445033096 INV. FA45539 V. 16.09.16 L 1010341 | E102: 323.92 | F102: 7587.38
A103: 2016-09-30 | B103: 2016-09-30 | C103: VIR PONTICELLI FRERES 2000013784 /FA44787/FA44788 | E103: 2716.8 | F103: 10304.18
A104: 2016-09-30 | B104: 2016-09-30 | C104: VIR OREXAD VIREMENT OREXAD FA44783 | E104: 82.56 | F104: 10386.74
A105: 2016-09-30 | B105: 2016-09-30 | C105: VIR OREXAD VIREMENT OREXAD 44620 44621 44623/043 44624/043 FA44622 FA44781 FA44782 FA44819 FA4482 | E105: 10071.1 | F105: 20457.84
A106: 2016-09-30 | B106: 2016-09-30 | C106: VIR MABEO INDUSTRIES 015SCVF007387 FACTURES | E106: 14937.36 | F106: 35395.2
A107: 2016-09-30 | B107: 2016-09-30 | C107: VIR COMPTE COURANT ENTREPRISE E | D107: -35000 | F107: 395.2
A108: 2016-09-30 | B108: 2016-09-30 | C108: VIR LECOUFLE LC/06/386/13016 FACTURE FA43041 DU 30/05/16. | E108: 385.56 | F108: 780.76
A109: 2016-09-30 | B109: 2016-09-30 | C109: REMISE LCR 1609151 2091373 | E109: 6898.06 | F109: 7678.82
A110: 2016-10-01 | B110: 2016-10-01 | C110: VIR COMPTE COURANT ENTREPRISE E | D110: -7600 | F110: 78.82
A111: 2016-10-02 | B111: 2016-10-01 | C111: INTERETS/FRAIS | D111: -4.81 | F111: 74.01
A112: 2016-10-03 | B112: 2016-10-03 | C112: VIR ETABLISSEMENTS BAURES BA/10/693/27949 FACTURE 43000 DU 30/05/16. | E112: 732 | F112: 806.01
A113: 2016-10-03 | B113: 2016-10-04 | C113: REM CHQ REF16062R08 | E113: 9060.66 | F113: 9866.67
A114: 2016-10-03 | B114: 2016-10-03 | C114: VIR HUDRY 46/501/591/6961 FACTURES FA43033 FA43034 FA43035 FA43036 FA43037 FA43038 FA44875 FA448 | E114: 2374.94 | F114: 12241.61
A115: 2016-10-03 | B115: 2016-10-03 | C115: VIR COMPTE COURANT ENTREPRISE E | D115: -12000 | F115: 241.61
A116: 2016-10-03 | B116: 2016-10-03 | C116: VIR BOUTILLON 31/506/678/19207 FACTURE FA43275BIS DU 09/06/16. | E116: 84.79 | F116: 326.4
A117: 2016-10-04 | B117: 2016-10-04 | C117: VIR DISTRILAB INDUSTRIE 21/508/268/37710 FACTURE FA43974 DU 30/06/16. | E117: 150.38 | F117: 476.78
A118: 2016-10-04 | B118: 2016-10-04 | C118: VIR COMPTOIR POUR L INDUSTRI 20160930-401024050 | E118: 901.44 | F118: 1378.22
A119: 2016-10-04 | B119: 2016-10-04 | C119: VIR AMIET LPR VIRT AUDITECH RGLT FACT.22/07 ET 29/07/2016 | E119: 2346.11 | F119: 3724.33
A120: 2016-10-04 | B120: 2016-10-04 | C120: VIR SUCHAIL 20160930-401024050 | E120: 154.57 | F120: 3878.9
A121: 2016-10-05 | B121: 2016-10-05 | C121: VIR LIGNE T SA FF603857 FACTURE AUDITECH INNOVATIONS SAS F4 | E121: 402.91 | F121: 4281.81
A122: 2016-10-05 | B122: 2016-10-05 | C122: VIR ECH 04/10/2016 BRAMMER FRAN BRAENDTOEND/0000035042 VIR ECH 04/10/2016 BRAMMER FRANCESELON AVIS SEPARE DU 05/10/2016 | E122: 1629.6 | F122: 5911.41
A123: 2016-10-06 | B123: 2016-10-06 | C123: VIR TECHNIC + 18284 FACT AUDITECH | E123: 177.46 | F123: 6088.87
A124: 2016-10-06 | B124: 2016-10-06 | C124: VIR VIR WEB VERS COMPTE COURANT | D124: -6000 | F124: 88.87
A125: 2016-10-06 | B125: 2016-10-06 | C125: VIR OREXAD VIREMENT OREXAD FA44619 | E125: 5013.1 | F125: 5101.97
A126: 2016-10-06 | B126: 2016-10-06 | C126: VIR COMPTE COURANT ENTREPRISE E | D126: -5000 | F126: 101.97
A127: 2016-10-07 | B127: 2016-10-07 | C127: VIR GERIN 0012427958 AVIS DE 06.10.16 A | E127: 3317.91 | F127: 3419.88
A128: 2016-10-07 | B128: 2016-10-07 | C128: VIR FIPROTEC SAS 0012440892 VIREMENT | E128: 6375.78 | F128: 9795.66
A129: 2016-10-07 | B129: 2016-10-07 | C129: VIR RG SAFETY 0012027463 N O F.FA44406 /15.07.16N O F.FA44646 /22.07.16N O F.FA44795 /29.07. | E129: 3699.67 | F129: 13495.33
A130: 2016-10-07 | B130: 2016-10-07 | C130: VIR AUDITION DU COMTAT VENAI 032016280290602960000001 FA 45678 DU 23/09/2016 | E130: 144.22 | F130: 13639.55
A131: 2016-10-07 | B131: 2016-10-07 | C131: VIR AUDITION DU COMTAT VENAI 032016280290602650000001 FA 45466 DU 16/09/2016 | E131: 69.12 | F131: 13708.67
A132: 2016-10-07 | B132: 2016-10-07 | C132: VIR COMPTE COURANT ENTREPRISE E | D132: -13500 | F132: 208.67
A133: 2016-10-10 | B133: 2016-10-10 | C133: VIR CRIT CRIT/RGT77969 RGT FACT.FA45302 | E133: 105.6 | F133: 314.27
A134: 2016-10-10 | B134: 2016-10-10 | C134: VIR ANTIA 30027-12-16284065057681 FA44462 AV 10569 | E134: 775.2 | F134: 1089.47
A135: 2016-10-10 | B135: 2016-10-01 | C135: FAC.CIC SGT16005230559785 DONT TVA 0,00EUR | D135: -12.03 | F135: =IF(F134<>"NA",F134+D135+E135,"NA") -> 1077.44
A136: 2016-10-10 | B136: 2016-10-10 | C136: VIR BAUDOUX BX/BSD/223/8627 FACTURE FA44467 DU 22/07/16. | E136: 87.41 | F136: 1164.85
A137: 2016-10-10 | B137: 2016-10-10 | C137: VIR ECH 05/10/2016 SPBI BJT 0000027594 SELON AVIS SEPARE DU 10/10/2016 | E137: 709.92 | F137: 1874.77
A138: 2016-10-10 | B138: 2016-10-10 | C138: VIR SECURIVAL SECURIVAL FA44802 AC9036 | E138: 1159.2 | F138: 3033.97
A139: 2016-10-10 | B139: 2016-10-10 | C139: VIR SECURIVAL SECURIVAL FA44411 AC9009 | E139: 86.88 | F139: 3120.85
A140: 2016-10-10 | B140: 2016-10-10 | C140: VIR SECURIVAL SECURIVAL FA44896 AC9037 | E140: 709.92 | F140: 3830.77
A141: 2016-10-10 | B141: 2016-10-10 | C141: VIR MABEO INDUSTRIES 015SCVF007488 FACTURES | E141: 24999.05 | F141: 28829.82
A142: 2016-10-10 | B142: 2016-10-10 | C142: VIR COMPTE COURANT ENTREPRISE E | D142: -28800 | F142: 29.82
A143: 2016-10-11 | B143: 2016-10-11 | C143: VIR VAUDAUX JEAN AUDITECH | E143: 171.55 | F143: 201.37
A144: 2016-10-11 | B144: 2016-10-11 | C144: VIR ELBA FACHHANDEL FUR ARBE 30027-12-16285335027237 FA45922 ELBA ARBEITSSCHUTZ | E144: 67.48 | F144: 268.85
A145: 2016-10-11 | B145: 2016-10-11 | C145: VIR PERRIER, PHILIPPE GASTON PERRIER - SOLDE CPTE RBT SOLDE DE TT CPTE PHILIPPE PERRIER | E145: 281.15 | F145: 550
A146: 2016-10-11 | B146: 2016-10-11 | C146: FA43163 AV10612 FRANCE PROTECT | E146: 620.04 | F146: 1170.04
A147: 2016-10-12 | B147: 2016-10-12 | C147: VIR CEVENOLE DE PROTECTION 0012216600 VIREMENT | E147: 2131.46 | F147: 3301.5
A148: 2016-10-12 | B148: 2016-10-12 | C148: VIR COMPTE COURANT ENTREPRISE E | D148: -3300 | F148: 1.5
A149: 2016-10-13 | B149: 2016-10-13 | C149: VIR AGEPI PROTECT HOMS F44998/44997 AOUT | E149: 164.62 | F149: 166.12
A150: 2016-10-13 | B150: 2016-10-13 | C150: VIR MONTEIL VETEMENTS 30027-12-16287015007612 CLT 41 MONTEIL19108 - FACT 45387-45386-45385 | E150: 453.38 | F150: 619.5
A151: 2016-10-13 | B151: 2016-10-14 | C151: REM CHQ REF16062R08 | E151: 4327.39 | F151: 4946.89
A152: 2016-10-13 | B152: 2016-10-13 | C152: VIR COMPTE COURANT ENTREPRISE E | D152: -4900 | F152: 46.89
A153: 2016-10-14 | B153: 2016-10-14 | C153: REGT FACT VBL VBL | E153: 3487.75 | F153: 3534.64
A154: 2016-10-14 | B154: 2016-10-14 | C154: VIR KEEP SAFE PROFORMA 720 | E154: 252.53 | F154: 3787.17
A155: 2016-10-14 | B155: 2016-10-14 | C155: VIR COMPTE COURANT ENTREPRISE E | D155: -3700 | F155: 87.17
A156: 2016-10-17 | B156: 2016-10-17 | C156: VIR ASSISTANCE LOGISTIQUE SE AUDITECH / ALS FACTURE FA44043 DU 08/07/2016 | E156: 1274.4 | F156: 1361.57
A157: 2016-10-17 | B157: 2016-10-17 | C157: VIR NOYER SAFIA 10/503/286/19447 FACTURES FA44968 FA44967. | E157: 291.28 | F157: 1652.85
A158: 2016-10-17 | B158: 2016-10-17 | C158: VIR LECOUFLE LC/06/393/13287 FACTURES FA44962 FA45128 FA45129. | E158: 1024.53 | F158: 2677.38
A159: 2016-10-17 | B159: 2016-10-17 | C159: VIR BEAUPLET PROLIANS BE/06/891/61232 FACTURES FA44982 FA45011 FA45010 FA45009 FA45008 FA45007 FA45100 FA451 | E159: 5144.21 | F159: 7821.59
A160: 2016-10-17 | B160: 2016-10-17 | C160: VIR GUILMAN 75/501/486/11726 FACTURES FA44158 FA45127 FA45126 FA45125 FA45124 FA45186 FA45185 FA451 | E160: 6711.56 | F160: 14533.15
A161: 2016-10-17 | B161: 2016-10-17 | C161: VIR COFAQ 00004- VIREMENT RELEVE FOURNISSEUR | E161: 1960.21 | F161: 16493.36
A162: 2016-10-17 | B162: 2016-10-17 | C162: VIR T CONCEPT FA45570 16/9/16 | E162: 86.88 | F162: 16580.24
A163: 2016-10-17 | B163: 2016-10-17 | C163: VIR SAFIM SARL 68/502/291/11792 FACTURE 45133 DU 26/08/16. | E163: 615.94 | F163: 17196.18
A164: 2016-10-17 | B164: 2016-10-17 | C164: VIR COMPTOIR FRANCAIS DE LA 00005- VIREMENT RELEVE FOURNISSEUR | E164: 5937.89 | F164: 23134.07
A165: 2016-10-17 | B165: 2016-10-17 | C165: VIR EMP EM/BEC/2674/47036 FACTURE FA45173 DU 31/08/16. | E165: 1395.1 | F165: 24529.17
A166: 2016-10-17 | B166: 2016-10-17 | C166: VIR C.M.B. CB/BPO/339/25554 FACTURES FA44934 FA44935 FA45030 FA45029 FA45028 FA45027 FA45025 FA450 | E166: 2994.11 | F166: 27523.28
A167: 2016-10-17 | B167: 2016-10-17 | C167: VIR SERVET DUCHEMIN SD/04/727/19614 FACTURES 45088 45089 45090. | E167: 765.84 | F167: 28289.12
A168: 2016-10-17 | B168: 2016-10-17 | C168: VIR MABEO INDUSTRIES 015SCVF007674 FACTURES | E168: 12582.5 | F168: 40871.62
A169: 2016-10-17 | B169: 2016-10-17 | C169: VIR CEVENOLE DE PROTECTION 0012216706 VIREMENT | E169: 1319.26 | F169: 42190.88
A170: 2016-10-17 | B170: 2016-10-17 | C170: VIR C.A.C.C. CA/01/714/25439 FACTURES 44932 44933 45021 45104 45105 45106. | E170: 3851.98 | F170: 46042.86
A171: 2016-10-17 | B171: 2016-10-17 | C171: VIR CODIMA 39/509/242/8118 FACTURES FA44984 FA45031 FA45152. | E171: 575.02 | F171: 46617.88
A172: 2016-10-17 | B172: 2016-10-17 | C172: AUDITION JUTIER PIRON VU62911ZVAAM4401 FA46129 DU 07/10/2016 | E172: 91.3 | F172: 46709.18
A173: 2016-10-17 | B173: 2016-10-17 | C173: VIR COMPTE COURANT ENTREPRISE E | D173: -46500 | F173: 209.18
A174: 2016-10-17 | B174: 2016-10-17 | C174: VIR OPCA DEFI OPCA DEFI OPCA DEFI VIRT PRO 97347 VOS REF FACT FA45462 | E174: 2757.24 | F174: 2966.42
A175: 2016-10-17 | B175: 2016-10-17 | C175: VIR LYRECO FRANCE 30027-12-16291815004337 INV FA45068 | E175: 1723.14 | F175: 4689.56
A176: 2016-10-18 | B176: 2016-10-18 | C176: VIR TAMPLEU SPRIET 71/503/3895/263960 FACTURES 44898 45096 45095 45094 45134 45202 45201. | E176: 12931.86 | F176: 17621.42
A177: 2016-10-18 | B177: 2016-10-18 | C177: VIR BERNARD PAGES PA/SG/2663/46606 FACTURES FA43097 FA43686 FA44908 FA44909 FA44910 FA44911 FA44912 FA450 | E177: 4349.86 | F177: 21971.28
A178: 2016-10-18 | B178: 2016-10-18 | C178: VIR KEEP SAFE PROFORMA 740 | E178: 77.28 | F178: 22048.56
A179: 2016-10-18 | B179: 2016-10-18 | C179: VIR ETABLISSEMENTS BAURES BA/13/712/28598 FACTURES 45005 45006. | E179: 961.68 | F179: 23010.24
A180: 2016-10-18 | B180: 2016-10-18 | C180: VIR ETABLISSEMENTS DESCOURS DR/B01/11231/375342 FACTURES FA44945 FA44946 FA44947 FA44948 FA44949 FA44950 FA44951 FA449 | E180: 7384.94 | F180: 30395.18
A181: 2016-10-18 | B181: 2016-10-18 | C181: VIR RENE LEDOUX LE/BC/2659/46243 FACTURES FA45130 FA45131 FA45132. | E181: 1016.04 | F181: 31411.22
A182: 2016-10-18 | B182: 2016-10-18 | C182: VIR VAMA-DOCKS DG/SG/551/28333 FACTURES FA44977 FA44980 FA44979 FA44978 FA45099 45140 45138 45141 FA4 | E182: 9291.22 | F182: 40702.44
A183: 2016-10-18 | B183: 2016-10-18 | C183: VIR STE METALLURGIQUE DE GRE SG/07/311/14110 FACTURES FA44952 FA45045 FA45044 FA45172 45197 45198 45199 45200. | E183: 691.76 | F183: 41394.2
A184: 2016-10-18 | B184: 2016-10-18 | C184: VIR ETABLISSEMENTS BOSSU CUV BC/08/342/22334 FACTURES FA44913 FA44914 FA44916 FA44915 FA44917 FA44918 FA44919 FA449 | E184: 6616.89 | F184: 48011.09
A185: 2016-10-18 | B185: 2016-10-18 | C185: VIR SA MARTIN RONDEAU MR/CL/490/21259 FACTURE FA44965 DU 04/08/16. | E185: 660.24 | F185: 48671.33
A186: 2016-10-18 | B186: 2016-10-18 | C186: VIR DESCOURS ET CABAUD PROV DP/B10/190/24504 FACTURES FA45040 FA45161. | E186: 169.58 | F186: 48840.91
A187: 2016-10-18 | B187: 2016-10-18 | C187: VIR ETABLISSEMENTS G. BOUTIL 31/505/693/19652 FACTURES FA43514 FA44499 FA44498 FA44497 FA44838 FA44837 FA44836 FA449 | E187: 3211.84 | F187: 52052.75
A188: 2016-10-18 | B188: 2016-10-18 | C188: VIR SA ETABLISSEMENTS BURDIN BB/BCE/757/12668 FACTURES 45060 45059 45058 45057 45056 45055 45054 45053 45052 45051 4 | E188: 3720.17 | F188: 55772.92
A189: 2016-10-18 | B189: 2016-10-18 | C189: VIR HUDRY 46/502/600/7097 FACTURE FA45067 DU 23/08/16. | E189: 2063.27 | F189: 57836.19
A190: 2016-10-18 | B190: 2016-10-18 | C190: VIR COMPTE COURANT ENTREPRISE E | D190: -57500 | F190: 336.19
A191: 2016-10-19 | B191: 2016-10-19 | C191: VIR PROTECT HOMS VINCENT BEZ VSL012016101800004001000019 BRETAGNE - 56 - PONTIVY | E191: 44.56 | F191: 380.75
A192: 2016-10-19 | B192: 2016-10-19 | C192: VIR SAS FTI 73/506/313/4371 FACTURE 45123 DU 26/08/16. | E192: 159.98 | F192: 540.73
A193: 2016-10-19 | B193: 2016-10-19 | C193: VIR SAS DISTRILAB INDUSTRIE 21/505/273/38482 FACTURES FA44953 FA45046 FA45120. | E193: 1263.58 | F193: 1804.31
A194: 2016-10-20 | B194: 2016-10-20 | C194: VIR RG SAFETY 0012027667 N O F.FA44971 /04.08.16 | E194: 2135.33 | F194: 3939.64
A195: 2016-10-20 | B195: 2016-10-20 | C195: VIR ETS GUERMONT-WEBER GW/B59/477/16015 FACTURES FA44958 FA44957 FA45177. | E195: 799.39 | F195: 4739.03
A196: 2016-10-20 | B196: 2016-10-20 | C196: VIR ALPA CHIMIES FA42410 FACT FA42410 AUDITECH | E196: 512.4 | F196: 5251.43
A197: 2016-10-20 | B197: 2016-10-20 | C197: VIR COMPTE COURANT ENTREPRISE E | D197: -5000 | F197: 251.43
A198: 2016-10-21 | B198: 2016-10-21 | C198: VIR P B SECURITE PB A AUDITECH | E198: 1619.52 | F198: 1870.95
A199: 2016-10-21 | B199: 2016-10-21 | C199: VIR MONTEIL VETEMENTS 30027-12-16295065066317 CLT MONTEIL - FACT 43607/08/09 | E199: 495.24 | F199: =IF(F198<>"NA",F198+D199+E199,"NA") -> 2366.19
A200: 2016-10-21 | B200: 2016-10-21 | C200: VIR COMPTE COURANT ENTREPRISE E | D200: -2300 | F200: 66.19
... 60 more rows

Sheet Cpt 16062 00020115101
A1: Situation de votre compte COMPTE COURANT ENTREPRISE EUR AUDITECH INNOVATIONS (EUR) au 14/11/2016 | B1: Situation de votre compte COMPTE COURANT ENTREPRISE EUR AUDITECH INNOVATIONS (EUR) au 14/11/2016 | C1: Situation de votre compte COMPTE COURANT ENTREPRISE EUR AUDITECH INNOVATIONS (EUR) au 14/11/2016 | D1: Situation de votre compte COMPTE COURANT ENTREPRISE EUR AUDITECH INNOVATIONS (EUR) au 14/11/2016 | E1: Situation de votre compte COMPTE COURANT ENTREPRISE EUR AUDITECH INNOVATIONS (EUR) au 14/11/2016 | F1: Situation de votre compte COMPTE COURANT ENTREPRISE EUR AUDITECH INNOVATIONS (EUR) au 14/11/2016
A2: R.I.B. : 30027 16062 00020115101 | B2: R.I.B. : 30027 16062 00020115101 | C2: R.I.B. : 30027 16062 00020115101 | D2: R.I.B. : 30027 16062 00020115101 | E2: R.I.B. : 30027 16062 00020115101 | F2: R.I.B. : 30027 16062 00020115101
D3: Solde initial : | E3: Solde initial : | F3: =F228-SUM(D6:D226)-SUM(E6:E226) -> 657029.33
D4: Liste de vos comptes | E4: Liste de vos comptes | F4: Liste de vos comptes
A5: Opération | B5: Valeur | C5: Libellé | D5: Débit | E5: Crédit | F5: Solde
A6: 2016-09-15 | B6: 2016-09-15 | C6: PRLV SEPA DGFIP 220760460700042726370 CVAE-092016-1329AC | D6: -3379 | F6: =F3+D6+E6 -> 653650.33
A7: 2016-09-15 | B7: 2016-09-15 | C7: PRLV SEPA DGFIP 220760460700042704008 IS-092016-2571 | D7: -29228 | F7: =IF(F6<>"NA",F6+D7+E7,"NA") -> 624422.33
A8: 2016-09-15 | B8: 2016-09-15 | C8: PRLV SEPA UBIFRANCE 0000132438 /INV/2016063937 31.7.2016 | D8: -2494.84 | F8: 621927.49
A9: 2016-09-15 | B9: 2016-09-15 | C9: PRLV SEPA CM-CIC BAIL 1/4305677/42281915 PRL CM-CIC BAIL 10013847820 FACTURE 1L20787992 | D9: -502.7 | F9: 621424.79
A10: 2016-09-15 | B10: 2016-09-15 | C10: VIR DE CPT VIR ET LCR CLIENTS | E10: 108000 | F10: 729424.79
A11: 2016-09-15 | B11: 2016-09-15 | C11: ECH PRET CAP+IN 16062 201151 06 TAUX= 3,15000 INT= 70,11 | D11: -1442.83 | F11: 727981.96
A12: 2016-09-16 | B12: 2016-09-16 | C12: PRLV SEPA URSSAF HAUTE-NORMANDI RBB-TLDP23716259122042RCUR000006096 UR 237000001900449397 AOUT16795118348000150916 | D12: -42368 | F12: 685613.96
A13: 2016-09-16 | B13: 2016-09-16 | C13: PRLV SEPA LA POSTE COURRIER 20035420402016 FAC N45080756 200354204016 CLT0000967056 RUMMCCOU1761527 | D13: -176.25 | F13: 685437.71
A14: 2016-09-16 | B14: 2016-09-16 | C14: PRLV SEPA CM-CIC BAIL 1/4305677/42288651 PRL CM-CIC BAIL 10013048930 FACTURE 1L20793729 | D14: -658.91 | F14: 684778.8
A15: 2016-09-16 | B15: 2016-09-16 | C15: PRLV SEPA BIP GO .FB0019194563-1-BIPANDGO BIP GO/.FB0019194563-1-BIPANDGO/ADVU-250080158945-00001-01 | D15: -449.5 | F15: 684329.3
A16: 2016-09-16 | B16: 2016-09-16 | C16: VIR DE CPT VIR ET LCR CLIENTS | E16: 126000 | F16: 810329.3
A17: 2016-09-19 | B17: 2016-09-19 | C17: PRLV SEPA VODAFONE GMBH 0000107955386 0011144916583 RECHNUNGSNR: 113740722286VODAFONE SAGT VIELEN DANK | D17: -67.5 | F17: 810261.8
A18: 2016-09-19 | B18: 2016-09-19 | C18: VIR DE CPT VIR ET LCR CLIENTS | E18: 20000 | F18: 830261.8
A19: 2016-09-20 | B19: 2016-09-20 | C19: VIR ALDARAN FA000292 | D19: -14664 | F19: 815597.8
A20: 2016-09-20 | B20: 2016-09-20 | C20: VIR DE CPT VIR ET LCR CLIENTS | E20: 15000 | F20: 830597.8
A21: 2016-09-20 | B21: 2016-09-19 | C21: CHEQUE 1403704 | D21: -69.14 | F21: 830528.66
A22: 2016-09-20 | B22: 2016-09-20 | C22: VIR DE CPT VIR ET LCR CLIENTS | E22: 3000 | F22: 833528.66
A23: 2016-09-21 | B23: 2016-09-21 | C23: VIR DRFIP DE L ILE DE FRANCE 1D0750000201600212-069842893-160916 EMB-EMB-PME04010423630 AUDITECH ASP SRTCC201600212-0698428931 | E23: 450 | F23: 833978.66
A24: 2016-09-21 | B24: 2016-09-21 | C24: PRLV SEPA CM-CIC BAIL 1/4305677/42322762 PRL CM-CIC BAIL 10012554790 FACTURE 1L20824794 | D24: -535.08 | F24: 833443.58
A25: 2016-09-21 | B25: 2016-09-21 | C25: VIR DE CPT VIR ET LCR CLIENTS | E25: 3500 | F25: 836943.58
A26: 2016-09-22 | B26: 2016-09-22 | C26: PRLV SEPA CM-CIC BAIL 1/4305677/42328518 PRL CM-CIC BAIL 10013847650 FACTURE 1L20831270 | D26: -583.99 | F26: 836359.59
A27: 2016-09-22 | B27: 2016-09-22 | C27: VIR DE CPT VIR ET LCR CLIENTS | E27: 2400 | F27: 838759.59
A28: 2016-09-23 | B28: 2016-09-23 | C28: VIR DRFIP DE L ILE DE FRANCE 1D0750000201600214-070006087-160920 EAV 04010423630 AUDITECH INNOVAT ASP SRTCC201600214-0700060871 | E28: 444.87 | F28: 839204.46
A29: 2016-09-26 | B29: 2016-09-26 | C29: PRLV SEPA HUMANIS AG081000000939165 RETRAITE - HUMANIS - 201608M - SIRET 44795187200046 | D29: -7862 | F29: 831342.46
A30: 2016-09-26 | B30: 2016-09-26 | C30: PRLV SEPA CM-CIC BAIL 1/4305677/42341447 PRL CM-CIC BAIL 10011536900 FACTURE 1L20842166 | D30: -544.92 | F30: 830797.54
A31: 2016-09-26 | B31: 2016-09-23 | C31: CHEQUE 1403705 | D31: -198.88 | F31: 830598.66
A32: 2016-09-27 | B32: 2016-09-27 | C32: PRLV SEPA NORMANDIE 4ATMNJ 0320804283167514E TIPSEPA ORANGE VOTRE FACTURE XXX208X283 16G5 | D32: -149.44 | F32: 830449.22
A33: 2016-09-27 | B33: 2016-09-27 | C33: VIR DE CPT VIR ET LCR CLIENTS | E33: 9500 | F33: 839949.22
A34: 2016-09-27 | B34: 2016-09-27 | C34: VIR REMB FRAIS SEPTEMBRE 2016 | D34: -119.9 | F34: 839829.32
A35: 2016-09-28 | B35: 2016-09-28 | C35: PRLV SEPA DGFIP 220760460800027854246 TVA1-092016-3310CA3 | D35: -32454 | F35: 807375.32
A36: 2016-09-28 | B36: 2016-09-28 | C36: VIR DE CPT VIR ET LCR CLIENTS | E36: 3000 | F36: 810375.32
A37: 2016-09-28 | B37: 2016-09-27 | C37: CHEQUE 1403706 | D37: -200 | F37: 810175.32
A38: 2016-09-29 | B38: 2016-09-29 | C38: VIR RBT FRAIS TRANSPORT TPRA | D38: -173.5 | F38: 810001.82
A39: 2016-09-29 | B39: 2016-09-29 | C39: VIR SALAIRES AUDITECH SEPT 2016 | D39: -31511.84 | F39: 778489.98
A40: 2016-09-30 | B40: 2016-09-30 | C40: PRLV SEPA INITIAL BTB SA CPR00000464-5681991659 0008721493 | D40: -209.94 | F40: 778280.04
A41: 2016-09-30 | B41: 2016-09-30 | C41: PRLV SEPA INES SH7ZEG8OED19B34Z PREL FACT 120741 | D41: -120 | F41: 778160.04
A42: 2016-09-30 | B42: 2016-09-30 | C42: VIR FA LI-30-09-16 LICENCES BRE | D42: -32600 | F42: 745560.04
A43: 2016-09-30 | B43: 2016-09-30 | C43: VIR VERS ALTERNATIVE TT ST ETIE | D43: -3761.86 | F43: 741798.18
A44: 2016-09-30 | B44: 2016-09-30 | C44: VIR VERS AUTO CONCEPT | D44: -608.7 | F44: 741189.48
A45: 2016-09-30 | B45: 2016-09-30 | C45: VIR VERS BD CONSEIL | D45: -468 | F45: 740721.48
A46: 2016-09-30 | B46: 2016-09-30 | C46: VIR VERS BILLIS CLIM | D46: -300 | F46: 740421.48
A47: 2016-09-30 | B47: 2016-09-30 | C47: VIR VERS BUREAU VERITAS | D47: -72 | F47: 740349.48
A48: 2016-09-30 | B48: 2016-09-30 | C48: VIR VERS CERIEL GESTION ET SERV | D48: -2178 | F48: 738171.48
A49: 2016-09-30 | B49: 2016-09-30 | C49: VIR VERS CERIEL INFRASTRUCTURE | D49: -458.4 | F49: 737713.08
A50: 2016-09-30 | B50: 2016-09-30 | C50: VIR VERS CONRAD | D50: -537.6 | F50: 737175.48
A51: 2016-09-30 | B51: 2016-09-30 | C51: VIR VERS CRITT | D51: -1800 | F51: 735375.48
A52: 2016-09-30 | B52: 2016-09-30 | C52: VIR VERS CYBERBOND | D52: -245.34 | F52: 735130.14
A53: 2016-09-30 | B53: 2016-09-30 | C53: VIR VERS DENTANOR | D53: -398.99 | F53: 734731.15
A54: 2016-09-30 | B54: 2016-09-30 | C54: VIR VERS LE TRAPPEUR NORMAND/GU | D54: -456 | F54: 734275.15
A55: 2016-09-30 | B55: 2016-09-30 | C55: VIR VERS LINEA FRANCE | D55: -138.6 | F55: 734136.55
A56: 2016-09-30 | B56: 2016-09-30 | C56: VIR VERS METIN PEUGEOT MARNE LA | D56: -85.94 | F56: 734050.61
A57: 2016-09-30 | B57: 2016-09-30 | C57: VIR VERS NORD OUEST CREATION | D57: -5248.8 | F57: 728801.81
A58: 2016-09-30 | B58: 2016-09-30 | C58: VIR VERS NORMECO | D58: -2832 | F58: 725969.81
A59: 2016-09-30 | B59: 2016-09-30 | C59: VIR VERS NOVAGRAAF | D59: -6867.6 | F59: 719102.21
A60: 2016-09-30 | B60: 2016-09-30 | C60: VIR VERS PEUGEOT GARAGE DE LA G | D60: -96.16 | F60: 719006.05
A61: 2016-09-30 | B61: 2016-09-30 | C61: VIR VERS PREVOT SMETA | D61: -120 | F61: 718886.05
A62: 2016-09-30 | B62: 2016-09-30 | C62: VIR VERS RAJA | D62: -737.27 | F62: 718148.78
A63: 2016-09-30 | B63: 2016-09-30 | C63: VIR VERS RONT PRODUCTION | D63: -959.04 | F63: 717189.74
A64: 2016-09-30 | B64: 2016-09-30 | C64: VIR VERS SECURITAS | D64: -847.64 | F64: 716342.1
A65: 2016-09-30 | B65: 2016-09-30 | C65: VIR VERS SETICO | D65: -381.48 | F65: 715960.62
A66: 2016-09-30 | B66: 2016-09-30 | C66: VIR VERS VEOLIA BONNEFOND | D66: -1773.62 | F66: 714187
A67: 2016-09-30 | B67: 2016-09-30 | C67: VIR SALAIRES AUDITECH SEPT 2016 | D67: -23637.86 | F67: 690549.14
A68: 2016-09-30 | B68: 2016-09-30 | C68: RELEVE CARTE | D68: -128.62 | F68: 690420.52
A69: 2016-09-30 | B69: 2016-09-30 | C69: RELEVE CARTE | D69: -1165.56 | F69: 689254.96
A70: 2016-09-30 | B70: 2016-09-30 | C70: RELEVE CARTE | D70: -302.71 | F70: 688952.25
A71: 2016-09-30 | B71: 2016-09-30 | C71: VIR DE CPT VIR ET LCR CLIENTS | E71: 35000 | F71: =IF(F70<>"NA",F70+D71+E71,"NA") -> 723952.25
A72: 2016-09-30 | B72: 2016-09-30 | C72: EFFET DOMICILIE RELEVE 738061 | D72: -1634.89 | F72: 722317.36
A73: 2016-10-01 | B73: 2016-10-01 | C73: VIR DE CPT VIR ET LCR CLIENTS | E73: 7600 | F73: 729917.36
A74: 2016-10-02 | B74: 2016-10-01 | C74: INTERETS/FRAIS | D74: -15 | F74: 729902.36
A75: 2016-10-03 | B75: 2016-10-03 | C75: VIR LOYER AUDITECH INNOVATIONS | D75: -7542 | F75: 722360.36
A76: 2016-10-03 | B76: 2016-10-03 | C76: PRLV SEPA SVP SAS 0015724938 /INV/0090572488 1.10.2016 | D76: -1930.68 | F76: 720429.68
A77: 2016-10-03 | B77: 2016-10-03 | C77: VIR DE CPT VIR ET LCR CLIENTS | E77: 12000 | F77: 732429.68
A78: 2016-10-04 | B78: 2016-10-04 | C78: VIR FRAIS FHA 09-2016 | D78: -1184.29 | F78: 731245.39
A79: 2016-10-04 | B79: 2016-10-04 | C79: VIR FA000294 ALDARAN LICENCES | D79: -9084 | F79: 722161.39
A80: 2016-10-04 | B80: 2016-10-04 | C80: VIR FRAIS FF 09-2016 | D80: -1272.66 | F80: 720888.73
A81: 2016-10-04 | B81: 2016-10-04 | C81: VIR FRAIS DBA 09-2016 | D81: -98.22 | F81: 720790.51
A82: 2016-10-04 | B82: 2016-10-04 | C82: VIR FRAIS HDF 09-2016 | D82: -1577.34 | F82: 719213.17
A83: 2016-10-05 | B83: 2016-10-05 | C83: ECH PRET CAP+IN 16062 201151 08 TAUX= 1,00000 INT= 97,74 | D83: -2222.19 | F83: 716990.98
A84: 2016-10-06 | B84: 2016-10-06 | C84: PRLV SEPA EI TELECOM NUM 2010063078598 PRELV CIC MOBILE 0089961994 | D84: -39.1 | F84: 716951.88
A85: 2016-10-06 | B85: 2016-10-06 | C85: PRLV SEPA EI TELECOM NUM 2010063137058 PRELV CIC MOBILE 0090022324 | D85: -81.09 | F85: 716870.79
A86: 2016-10-06 | B86: 2016-10-06 | C86: PRLV SEPA SWISSLIFE PS SIMVSCLI5POL01304642700140030275309 PRE-SWISSLIFE PS-20161005 PAP 013046427 0014 | D86: -6406.37 | F86: 710464.42
A87: 2016-10-06 | B87: 2016-10-06 | C87: PRLV SEPA SWISSLIFE PS SIMVSCLI5POL01304642100120030275309 PRE-SWISSLIFE PS-20161005 PAP 013046421 0012 | D87: -1963.62 | F87: 708500.8
A88: 2016-10-06 | B88: 2016-10-06 | C88: PRLV SEPA INES SH80D4VDS9F737U4 PREL FACT 120959 | D88: -1944 | F88: 706556.8
A89: 2016-10-06 | B89: 2016-10-06 | C89: PRLV SEPA EI TELECOM NUM 2010063069577 PRELV CIC MOBILE 0771017280 | D89: -17.27 | F89: 706539.53
A90: 2016-10-06 | B90: 2016-10-06 | C90: VIR DE COMPTE COURANT ENTREPRIS | E90: 6000 | F90: 712539.53
A91: 2016-10-06 | B91: 2016-10-06 | C91: VIR FRAIS 09-2016 JSE | D91: -1608.96 | F91: 710930.57
A92: 2016-10-06 | B92: 2016-10-06 | C92: VIR FRAIS DEPL HMA | D92: -151.7 | F92: 710778.87
A93: 2016-10-06 | B93: 2016-10-06 | C93: VIR DE CPT VIR ET LCR CLIENTS | E93: 5000 | F93: 715778.87
A94: 2016-10-06 | B94: 2016-10-06 | C94: ACHAT TEL MOBILE REF 426477660175 | D94: -5 | F94: 715773.87
A95: 2016-10-07 | B95: 2016-10-07 | C95: VIR DE CPT VIR ET LCR CLIENTS | E95: 13500 | F95: 729273.87
A96: 2016-10-10 | B96: 2016-10-10 | C96: PRLV SEPA DIAC LOCATION FRQQ252499806 DL30274001075EDIACLOC 252499806 DL30274001075EDIACLOC | D96: -487.8 | F96: 728786.07
A97: 2016-10-10 | B97: 2016-10-10 | C97: PRLV SEPA CM-CIC BAIL 1/4305677/42484145 PRL CM-CIC BAIL 10009106370 FACTURE 1L20972951 | D97: -655.54 | F97: 728130.53
A98: 2016-10-10 | B98: 2016-10-01 | C98: FAC.CIC SGT16005230566488 DONT TVA 9,60EUR | D98: -81.12 | F98: 728049.41
A99: 2016-10-10 | B99: 2016-10-10 | C99: VIR VERS CCFA CHAMBRE DE COMMER | D99: -8170.38 | F99: 719879.03
A100: 2016-10-10 | B100: 2016-10-10 | C100: VIR VERS DETAX GMBH CO | D100: -4059.9 | F100: 715819.13
A101: 2016-10-10 | B101: 2016-10-10 | C101: VIR VERS SYSKOMP GMBH (EMICO) | D101: -778.5 | F101: 715040.63
A102: 2016-10-10 | B102: 2016-10-10 | C102: VIR SALON HEES PETERS | D102: -700 | F102: 714340.63
A103: 2016-10-10 | B103: 2016-10-10 | C103: VIR DE CPT VIR ET LCR CLIENTS | E103: 28800 | F103: 743140.63
A104: 2016-10-10 | B104: 2016-10-07 | C104: CHEQUE 1403707 | D104: -2400 | F104: 740740.63
A105: 2016-10-11 | B105: 2016-10-11 | C105: PRLV SEPA ORANGE -080002424826006246271365 FIXENT - EN - FACTURE: 246271365 -COMPTE FACT: 803018564 - IDENT: 208 | D105: -584.1 | F105: 740156.53
A106: 2016-10-11 | B106: 2016-10-10 | C106: CHEQUE 1403708 | D106: -1728 | F106: 738428.53
A107: 2016-10-12 | B107: 2016-10-12 | C107: PRLV SEPA RICOH FRANCE SAS ARGE695164 ARGE695164 61294248 61294829 | D107: -652.15 | F107: 737776.38
A108: 2016-10-12 | B108: 2016-10-12 | C108: VIR AVANCE S/FRAIS H. MARTY | D108: -1000 | F108: 736776.38
A109: 2016-10-12 | B109: 2016-10-12 | C109: VIR FRAIS BSA 09-2016 | D109: -1517.56 | F109: 735258.82
A110: 2016-10-12 | B110: 2016-10-12 | C110: VIR DE CPT VIR ET LCR CLIENTS | E110: 3300 | F110: 738558.82
A111: 2016-10-13 | B111: 2016-10-13 | C111: PRLV SEPA CM-CIC BAIL 1/4305677/42501043 PRL CM-CIC BAIL 10010484770 FACTURE 1L20989990 | D111: -595.56 | F111: 737963.26
A112: 2016-10-13 | B112: 2016-10-13 | C112: PRLV SEPA LA POSTE COURRIER 20038268732016 FAC N45228735 200382687316 CLT0000967056 RUMMCCOU1353850 | D112: -902.5 | F112: 737060.76
A113: 2016-10-13 | B113: 2016-10-13 | C113: VIR DE CPT VIR ET LCR CLIENTS | E113: 4900 | F113: 741960.76
A114: 2016-10-14 | B114: 2016-10-14 | C114: PRLV SEPA LA POSTE COURRIER 20039065642016 FAC N45295668 200390656416 CLT0000967056 RUMMCCOU1761527 | D114: -671.76 | F114: 741289
A115: 2016-10-14 | B115: 2016-10-14 | C115: VIR FRAIS DIVERS AVANCE ML | D115: -103.39 | F115: 741185.61
A116: 2016-10-14 | B116: 2016-10-14 | C116: VIR DE CPT VIR ET LCR CLIENTS | E116: 3700 | F116: 744885.61
A117: 2016-10-14 | B117: 2016-10-15 | C117: ECH PRET CAP+IN 16062 201151 06 TAUX= 3,15000 INT= 66,50 | D117: -1442.83 | F117: 743442.78
A118: 2016-10-17 | B118: 2016-10-17 | C118: PRLV SEPA CM-CIC BAIL 1/4305677/42521434 PRL CM-CIC BAIL 10013048930 FACTURE 1L21013378 | D118: -658.91 | F118: 742783.87
A119: 2016-10-17 | B119: 2016-10-17 | C119: PRLV SEPA CM-CIC BAIL 1/4305677/42514432 PRL CM-CIC BAIL 10013847820 FACTURE 1L21007701 | D119: -502.7 | F119: 742281.17
A120: 2016-10-17 | B120: 2016-10-17 | C120: PRLV SEPA BIP GO .FB0019615389-1-BIPANDGO BIP GO/.FB0019615389-1-BIPANDGO/ADVU-250080158945-00001-01 | D120: -1692.3 | F120: 740588.87
A121: 2016-10-17 | B121: 2016-10-17 | C121: VIR DE CPT VIR ET LCR CLIENTS | E121: 46500 | F121: 787088.87
A122: 2016-10-18 | B122: 2016-10-18 | C122: PRLV SEPA URSSAF HAUTE-NORMANDI RBB-TLDP23716291122529RCUR000017406 UR 237000001900449397 SEPT16795118348000171016 | D122: -33475 | F122: 753613.87
A123: 2016-10-18 | B123: 2016-10-18 | C123: VIR DE CPT VIR ET LCR CLIENTS | E123: 57500 | F123: 811113.87
A124: 2016-10-19 | B124: 2016-10-19 | C124: PRLV SEPA VODAFONE GMBH 0000107955386 0011210301368 RECHNUNGSNR: 113815230207VODAFONE SAGT VIELEN DANK | D124: -71.16 | F124: 811042.71
A125: 2016-10-20 | B125: 2016-10-20 | C125: VIR DE CPT VIR ET LCR CLIENTS | E125: 5000 | F125: 816042.71
A126: 2016-10-21 | B126: 2016-10-21 | C126: PRLV SEPA CM-CIC BAIL 1/4305677/42555551 PRL CM-CIC BAIL 10012554790 FACTURE 1L21044595 | D126: -535.08 | F126: 815507.63
A127: 2016-10-21 | B127: 2016-10-21 | C127: VIR DE CPT VIR ET LCR CLIENTS | E127: 2300 | F127: 817807.63
A128: 2016-10-21 | B128: 2016-10-21 | C128: VIR DE CPT VIR ET LCR CLIENTS | E128: 3800 | F128: 821607.63
A129: 2016-10-24 | B129: 2016-10-24 | C129: PRLV SEPA EI TELECOM NUM 2010064036312 PRELV CIC MOBILE 0771830073 | D129: -6.33 | F129: 821601.3
A130: 2016-10-24 | B130: 2016-10-24 | C130: PRLV SEPA COLIPOSTE LA POSTE 98005362612016 /FAC/007600085250 5.10.2016 | D130: -70.18 | F130: 821531.12
A131: 2016-10-24 | B131: 2016-10-24 | C131: PRLV SEPA CM-CIC BAIL 1/4305677/42575808 PRL CM-CIC BAIL 10011536900 FACTURE 1L21061835 | D131: -544.92 | F131: 820986.2
A132: 2016-10-24 | B132: 2016-10-24 | C132: PRLV SEPA CM-CIC BAIL 1/4305677/42562108 PRL CM-CIC BAIL 10013847650 FACTURE 1L21050817 | D132: -583.99 | F132: 820402.21
A133: 2016-10-24 | B133: 2016-10-24 | C133: PRLV SEPA INES SH80JUJSI6EKTLR7 PREL FACT 121241 | D133: -137.28 | F133: 820264.93
A134: 2016-10-24 | B134: 2016-10-24 | C134: VIR LE CERCLE | D134: -1600 | F134: 818664.93
A135: 2016-10-25 | B135: 2016-10-25 | C135: PRLV SEPA HUMANIS AG081000001099139 RETRAITE - HUMANIS - 201609M - SIRET 44795187200046 | D135: -8304 | F135: =IF(F134<>"NA",F134+D135+E135,"NA") -> 810360.93
A136: 2016-10-25 | B136: 2016-10-25 | C136: VIR BUSINESS FRANCE 0000132438 /INV/ 29.6.2015 | E136: 3000 | F136: 813360.93
A137: 2016-10-25 | B137: 2016-10-25 | C137: PRLV SEPA HUMANIS 629102300075 HUMANIS 1630 | D137: -177 | F137: 813183.93
A138: 2016-10-25 | B138: 2016-10-25 | C138: VIR CARLO DE GIORGI FA 262 | D138: -545 | F138: 812638.93
A139: 2016-10-25 | B139: 2016-10-25 | C139: VIR DE CPT VIR ET LCR CLIENTS | E139: 8800 | F139: 821438.93
A140: 2016-10-25 | B140: 2016-10-25 | C140: VIR DIVIDENDES 2015 VERS HELIOS | D140: -288522 | F140: 532916.93
A141: 2016-10-25 | B141: 2016-10-24 | C141: CHEQUE 1403711 | D141: -76.01 | F141: 532840.92
A142: 2016-10-25 | B142: 2016-10-24 | C142: CHEQUE 1403713 | D142: -76.01 | F142: 532764.91
A143: 2016-10-26 | B143: 2016-10-26 | C143: VIR DRFIP ILE DE FRANCE ET D 1D0750000201600237-070549591-161021 EAV 04010423630 AUDITECH INNOVAT ASP SRTCC201600237-0705495911 | E143: 513.32 | F143: 533278.23
A144: 2016-10-26 | B144: 2016-10-26 | C144: PRLV SEPA DGFIP 220760460800028414297 TVA1-102016-3310CA3 | D144: -36838 | F144: 496440.23
A145: 2016-10-26 | B145: 2016-10-26 | C145: VIR VEOLIA PROPRETE FA37545 | D145: -1773.62 | F145: 494666.61
A146: 2016-10-26 | B146: 2016-10-26 | C146: VIR FRAIS C LHOMENIE | D146: -249.31 | F146: 494417.3
A147: 2016-10-27 | B147: 2016-10-27 | C147: PRLV SEPA ENGIE 830004797757 Z 300001055742-830004797757 | D147: -187.9 | F147: 494229.4
A148: 2016-10-27 | B148: 2016-10-27 | C148: ERREUR DE VIREMENT | E148: 288522 | F148: 782751.4
A149: 2016-10-28 | B149: 2016-10-28 | C149: VIR FRAIS JSE 10-2016 | D149: -1357.21 | F149: 781394.19
A150: 2016-10-28 | B150: 2016-10-28 | C150: VIR RBT POSTE COLIS NON AFFRANC | D150: -7.62 | F150: 781386.57
A151: 2016-10-28 | B151: 2016-10-27 | C151: CHEQUE 1403710 | D151: -225 | F151: 781161.57
A152: 2016-10-31 | B152: 2016-10-31 | C152: PRLV SEPA INITIAL BTB SA CPR00000473-5682928861 0008783289 | D152: -209.94 | F152: 780951.63
A153: 2016-10-31 | B153: 2016-10-31 | C153: PRLV SEPA CM-CIC BAIL 1/4305677/42617696 PRL CM-CIC BAIL 10015903880 FACTURE 1L21102699 | D153: -610.16 | F153: 780341.47
A154: 2016-10-31 | B154: 2016-10-31 | C154: VIR SALAIRES AUDITECH OCTO 2016 | D154: -23051.27 | F154: 757290.2
A155: 2016-10-31 | B155: 2016-10-31 | C155: VIR SALAIRES AUDITECH OCTO 2016 | D155: -33916.66 | F155: 723373.54
A156: 2016-10-31 | B156: 2016-10-31 | C156: VIR VERS ABSOLU JARDIN | D156: -669 | F156: 722704.54
A157: 2016-10-31 | B157: 2016-10-31 | C157: VIR VERS ALERT INCENDIE | D157: -572.4 | F157: 722132.14
A158: 2016-10-31 | B158: 2016-10-31 | C158: VIR VERS BILLIS CLIM | D158: -216 | F158: 721916.14
A159: 2016-10-31 | B159: 2016-10-31 | C159: VIR VERS CB AVOCAT | D159: -180 | F159: 721736.14
A160: 2016-10-31 | B160: 2016-10-31 | C160: VIR VERS CERIEL INFRASTRUCTURE | D160: -1150.56 | F160: 720585.58
A161: 2016-10-31 | B161: 2016-10-31 | C161: VIR VERS CRITT | D161: -3214.8 | F161: 717370.78
A162: 2016-10-31 | B162: 2016-10-31 | C162: VIR VERS C2M AUROCHS INDUSTRIE | D162: -813.2 | F162: 716557.58
A163: 2016-10-31 | B163: 2016-10-31 | C163: VIR VERS ETRAVES | D163: -707.12 | F163: 715850.46
A164: 2016-10-31 | B164: 2016-10-31 | C164: VIR VERS GARAGE VENET PEUGEOT | D164: -389.53 | F164: 715460.93
A165: 2016-10-31 | B165: 2016-10-31 | C165: VIR VERS KALIPTIS | D165: -259.74 | F165: 715201.19
A166: 2016-10-31 | B166: 2016-10-31 | C166: VIR VERS KONECT | D166: -157.33 | F166: 715043.86
A167: 2016-10-31 | B167: 2016-10-31 | C167: VIR VERS LE PRE DE LA BATAILLE | D167: -158.82 | F167: 714885.04
A168: 2016-10-31 | B168: 2016-10-31 | C168: VIR VERS LM COMMUNICATION | D168: -1780.56 | F168: 713104.48
A169: 2016-10-31 | B169: 2016-10-31 | C169: VIR VERS MANUTAN | D169: -162.6 | F169: 712941.88
A170: 2016-10-31 | B170: 2016-10-31 | C170: VIR VERS MB INDUSTRIE | D170: -1367.99 | F170: 711573.89
A171: 2016-10-31 | B171: 2016-10-31 | C171: VIR VERS NEWSON | D171: -157.98 | F171: 711415.91
A172: 2016-10-31 | B172: 2016-10-31 | C172: VIR VERS NORD OUEST CREATION | D172: -7986 | F172: 703429.91
A173: 2016-10-31 | B173: 2016-10-31 | C173: VIR VERS NORMECO | D173: -1416 | F173: 702013.91
A174: 2016-10-31 | B174: 2016-10-31 | C174: VIR VERS PEUGEOT GARAGE DE L ES | D174: -199.66 | F174: 701814.25
A175: 2016-10-31 | B175: 2016-10-31 | C175: VIR VERS RADIOSPARES 05-2016 | D175: -66.96 | F175: 701747.29
A176: 2016-10-31 | B176: 2016-10-31 | C176: VIR VERS RAJA | D176: -1222.13 | F176: 700525.16
A177: 2016-10-31 | B177: 2016-10-31 | C177: VIR VERS SOCACOM | D177: -4645.2 | F177: 695879.96
A178: 2016-10-31 | B178: 2016-10-31 | C178: VIR VERS TECHNIPLAST | D178: -16199.4 | F178: 679680.56
A179: 2016-10-31 | B179: 2016-10-31 | C179: VIR VERS TSN TOUS SERVICES NORM | D179: -1250.08 | F179: 678430.48
A180: 2016-10-31 | B180: 2016-10-31 | C180: VIR VERS 3D DENTAL STORE | D180: -270 | F180: 678160.48
A181: 2016-10-31 | B181: 2016-10-31 | C181: VIR FRAIS FF 10-2016 | D181: -1233.79 | F181: 676926.69
A182: 2016-10-31 | B182: 2016-10-31 | C182: RELEVE CARTE | D182: -566.91 | F182: 676359.78
A183: 2016-10-31 | B183: 2016-10-31 | C183: RELEVE CARTE | D183: -1533.88 | F183: 674825.9
A184: 2016-10-31 | B184: 2016-10-31 | C184: VIR DE CPT VIR ET LCR CLIENTS | E184: 17600 | F184: 692425.9
A185: 2016-10-31 | B185: 2016-10-31 | C185: EFFET DOMICILIE RELEVE 785690 | D185: -4968.06 | F185: 687457.84
A186: 2016-11-02 | B186: 2016-11-02 | C186: PRLV SEPA EDF Z005011704190 99285 2 FELIX 992 Z005011704190 99285 2 F03 PR NC: AG ENTREPRISES ? | D186: -847.29 | F186: 686610.55
A187: 2016-11-03 | B187: 2016-11-03 | C187: VIR LOYER AUDITECH INNOVATIONS | D187: -7542 | F187: 679068.55
A188: 2016-11-03 | B188: 2016-11-03 | C188: VIR 308 AFFAIRE PEUGEOT | D188: -17823.16 | F188: 661245.39
A189: 2016-11-03 | B189: 2016-11-03 | C189: VIR FRAIS HDF 10-2016 | D189: -1687.63 | F189: 659557.76
A190: 2016-11-03 | B190: 2016-11-03 | C190: VIR FRAIS BSA 10-2016 | D190: -1056.11 | F190: 658501.65
A191: 2016-11-03 | B191: 2016-11-03 | C191: VIR FA000309 ALDARAN | D191: -1864.57 | F191: 656637.08
A192: 2016-11-03 | B192: 2016-11-03 | C192: VIR FA000306 ALDARAN SSL | D192: -948 | F192: 655689.08
A193: 2016-11-03 | B193: 2016-11-03 | C193: VIR FA000310 ALDARAN | D193: -3277.8 | F193: 652411.28
A194: 2016-11-04 | B194: 2016-11-04 | C194: PRLV SEPA EI TELECOM NUM 2010064680376 PRELV CIC MOBILE 0091464159 | D194: -42.77 | F194: 652368.51
A195: 2016-11-04 | B195: 2016-11-04 | C195: PRLV SEPA EI TELECOM NUM 2010064699814 PRELV CIC MOBILE 0091484280 | D195: -91.83 | F195: 652276.68
A196: 2016-11-04 | B196: 2016-11-04 | C196: VIR DE CPT VIR ET LCR CLIENTS | E196: 31700 | F196: 683976.68
A197: 2016-11-04 | B197: 2016-11-04 | C197: VIR FRAIS DEPL FORMATION NRENOU | D197: -85.78 | F197: 683890.9
A198: 2016-11-04 | B198: 2016-11-03 | C198: CHEQUE 1403715 | D198: -466.2 | F198: 683424.7
A199: 2016-11-04 | B199: 2016-11-03 | C199: CHEQUE 1403709 | D199: -90 | F199: =IF(F198<>"NA",F198+D199+E199,"NA") -> 683334.7
A200: 2016-11-04 | B200: 2016-11-05 | C200: ECH PRET CAP+IN 16062 201151 08 TAUX= 1,00000 INT= 95,97 | D200: -2222.19 | F200: 681112.51
... 28 more rows

Sheet hidden (hidden)
A1: Nombre de compte
A2: 21
A3: Nom du compte | B3: Range | C3: Type
A4: Cpt 16062 00020115101 | B4: A6:E226 | C4: cpt
A7: Cpt 16062 00020115102 | B7: A6:E258 | C7: cpt
A9: Cpt 16062 00020115901 | B9: A6:E12 | C9: cpt
A24: Cpt 16062 00020154402 | B24: A6:E6 | C24: cpt
